[Event "Croatian Championship 2022"]
[Site "Split"]
[Date "2022.11.29"]
[Round "1.1"]
[White "Bukal, Vladimir Jr."]
[Black "Martinovic, Sasa"]
[Result "0-1"]
[ECO "C00"]
[WhiteElo "2411"]
[BlackElo "2557"]
[Annotator "TA"]
[PlyCount "106"]
[EventDate "2022.11.29"]
[EventType "tourn"]
[EventCountry "CRO"]
[SourceTitle "playchess.com"]
[Source "ChessBase"]
[SourceQuality "1"]
[TimeControl "40/5400+30:1800+30"]

{[%evp 19,106,-25,0,-22,-18,-26,-28,-40,-5,-41,-50,-44,-46,-60,-64,-85,-18,-64,-75,-93,-92,-97,-93,-100,-74,-97,-40,-51,-30,-57,-47,-61,-39,-45,-43,-42,-44,-130,-123,-127,-144,-123,-133,-492,-498,-506,-501,-589,-587,-597,-543,-560,-544,-617,-538,-539,-536,-564,-559,-612,-575,-864,-866,-1079,-975,-1120,-1041,-974,-973,-946,-951,-908,-898,-716,-530,-12829,-2594,-1814,-2330,-1467,-1273,-29988,-29989,-29989,-29990,-29990,-29991,-29991,-29990]} 1. Nf3 {[%emt 0:00:03]} Nf6 {[%emt 0:00:06]} 2. g3 {[%emt 0:01:01]} d5 {[%emt 0:00:11]} 3. Bg2 {[%emt 0:00:07]} c5 {[%emt 0:00:10]} 4. O-O {[%emt 0:01:23]} e6 {[%emt 0:00:11]} 5. d3 {[%emt 0:09:22]} Nc6 {[%emt 0:00:18]} 6. Nbd2 {[%emt 0:04:58]} Be7 {[%emt 0:00:05]} 7. e4 {[%emt 0:06:30]} O-O {[%emt 0:00:06]} 8. Re1 {[%emt 0:02:58]} Qc7 {[%emt 0:00:06]} 9. c3 {[%emt 0:02:20]} b5 {[%emt 0:01:53]} 10. Qc2 {[%emt 0:12:53]} Bb7 {[%emt 0:02:14]} 11. Nf1 {[%emt 0:03:55] [#] C00: French: Unusual White 2nd moves.} h6 $146 {[%emt 0:09:12]} ({Predecessor:} 11... Rfd8 12. e5 Nd7 13. Bf4 a5 14. h4 a4 15. a3 h6 16. Ne3 Nb6 17. Ng4 Bf8 18. Qd2 Kh7 19. d4 Nd7 20. Bf1 c4 21. Be2 Ne7 22. Bd1 Nf5 23. Bc2 Ra6 24. Kg2 Qc8 25. Rh1 Kg8 {0-1 (25) Divya,D (2305)-Shuvalova,P (2454) Chess.com INT 2020}) 12. Bf4 {[%emt 0:11:01]} e5 {[%emt 0:02:29] White must now prevent ...dxe4.} 13. Bd2 {[%emt 0:05:37] Black has an edge.} Rfd8 {[%emt 0:09:46]} 14. Nh4 {[%emt 0:05:52]} d4 {[%emt 0:12:40]} 15. Nf5 {[%emt 0:03:35]} Bf8 {[%emt 0:06:58]} 16. a4 {[%emt 0:07:52]} bxa4 {[%emt 0:12:24]} 17. h3 {[%emt 0:05:05]} dxc3 {[%emt 0:09:40]} (17... Ba6 $17) 18. Bxc3 {[%emt 0:06:11]} (18. bxc3 $11 c4 19. dxc4) 18... Ba6 $15 {[%emt 0:03:33]} 19. Rad1 {[%emt 0:02:32]} Bb5 {[%emt 0:00:31]} 20. N1e3 {[%emt 0:00:47]} Rac8 {[%emt 0:05:47]} 21. Nc4 {[%emt 0:05:06]} Nd7 {[%emt 0:08:31]} (21... Nd4 {keeps more tension.} 22. Qc1 Nd7 23. Nfe3 Nb6) 22. Nfe3 {[%emt 0:00:48]} Nb4 {[%emt 0:04:13]} (22... Nd4 $17 23. Qd2 Nb6) 23. Qe2 {[%emt 0:00:39]} f6 {[%emt 0:00:24]} (23... Re8 $5 {[%cal Rd7b6]}) 24. h4 {[%emt 0:00:31]} Nb6 {[%emt 0:00:17]} 25. Bh3 {[%emt 0:00:46]} Bd7 $36 {[%emt 0:00:20][%mdl 2048] Inhibits Be6+. Black has good play.} (25... Rb8 $5 {[%cal Rc7f7]}) 26. Bxd7 {[%emt 0:00:27]} Qxd7 {[%emt 0:01:07]} 27. Rd2 {[%emt 0:00:28]} Nc6 {[%emt 0:03:03]} (27... Nxd3 28. Ba5 $16) 28. h5 {[%emt 0:00:20] [#]} (28. Qf1 $15) 28... Nd4 $1 $17 {[%emt 0:00:34]} 29. Bxd4 {[%emt 0:00:46]} cxd4 {[%emt 0:00:16]} 30. Nxb6 {[%emt 0:00:19]} axb6 {[%emt 0:00:03]} 31. Nf5 {[%emt 0:00:41][%mdl 8192] This move loses the game for White.} (31. Nd5 $17) 31... Bb4 $19 {[%emt 0:01:06]} 32. Red1 {[%emt 0:00:39]} Bxd2 {[%emt 0:00:10]} 33. Rxd2 {[%emt 0:00:23]} Kh7 {[%emt 0:02:37]} 34. Qg4 {[%emt 0:00:20]} Qf7 {[%emt 0:00:06]} 35. f4 {[%emt 0:00:45]} Rc5 {[%emt 0:04:16]} 36. fxe5 {[%emt 0:00:24]} Rxe5 {[%emt 0:00:26]} 37. Kg2 {[%emt 0:00:57]} Rd7 {[%emt 0:01:20][%cal Bd8d7,Bd7c7,Bc7c1][%mdl 32]} 38. Qd1 {[%emt 0:00:33]} b5 {[%emt 0:00:42][%cal Bb6b5,Bb5b4,Bb4a3][%mdl 32]} 39. Qg4 {[%emt 0:00:30]} Rc7 {[%emt 0:00:34] Against Rc2} 40. Kh3 {[%emt 0:00:00]} b4 {[%emt 0:00:00]} 41. Kh4 {[%emt 0:06:47]} Rc1 {[%emt 0:07:47]} 42. Rh2 {[%emt 0:00:20] Inhibits Rh1.} a3 {[%emt 0:01:55]} 43. bxa3 {[%emt 0:00:06]} bxa3 {[%emt 0:00:26] Strongly threatening ...Rb5.} 44. Nd6 {[%emt 0:01:01] Against Rb5} Qe6 {[%emt 0:15:56] aiming for ...Qxg4+.} 45. Qg6+ {[%emt 0:00:29]} Kg8 {[%emt 0:00:04]} 46. Nf5 {[%emt 0:00:56] [#]} Rxf5 $1 {[%emt 0:00:08]} 47. exf5 {[%emt 0:10:26][%mdl 4096] Endgame KQR-KQR} (47. Qxf5 Qxf5) 47... Qe3 {[%emt 0:00:19]} (47... Qe5 $142 48. Kh3 Rc3) 48. Kh3 {[%emt 0:00:15]} Kf8 {[%emt 0:02:08]} ({Worse is} 48... Qxd3 49. Qe8+ Kh7 50. Qg6+ Kh8 51. Qe8+ Kh7 52. Qg6+ Kh8 53. Qe8+ Kh7 $11) 49. Qg4 {[%emt 0:03:00]} Qxd3 {[%emt 0:03:25][%cal Oa3a2] ( -> ...a2!)} 50. Re2 {[%emt 0:08:36] Against a2} a2 {[%emt 0:02:42] Black mates.} 51. Qf4 {[%emt 0:01:37]} Rh1+ {[%emt 0:01:26]} ({But not} 51... a1=B 52. Qb8+ (52. Qxc1 Qxe2 53. Qxa1 Qxh5+ 54. Kg2 Qe2+ 55. Kh3 Qe4 $19) (52. Qxc1 $2 Qxe2 53. Qc8+ Kf7 $19)) 52. Rh2 {[%emt 0:00:14]} Rxh2+ {[%emt 0:00:21]} 53. Kxh2 {[%emt 0:00:02]} Qe2+ {[%emt 0:00:06] Weighted Error Value: White=0.32/Black=0.17 (very precise)} 0-1

[Event "Croatian Championship 2022"]
[Site "Split"]
[Date "2022.11.29"]
[Round "1.2"]
[White "Bosiocic, Marin"]
[Black "Zelcic, Robert"]
[Result "1-0"]
[ECO "B10"]
[WhiteElo "2536"]
[BlackElo "2496"]
[Annotator "TA"]
[PlyCount "113"]
[EventDate "2022.11.29"]
[EventType "tourn"]
[EventCountry "CRO"]
[SourceTitle "playchess.com"]
[Source "ChessBase"]
[SourceQuality "1"]
[TimeControl "40/5400+30:1800+30"]

{[%evp 9,113,15,3,20,50,48,34,33,47,45,89,41,56,45,62,42,73,67,59,57,61,68,67,60,64,66,141,145,140,143,169,147,137,114,114,114,114,107,97,94,188,188,199,181,416,406,536,534,547,306,290,245,268,202,202,200,168,90,103,110,115,121,109,18,33,0,0,0,0,0,0,0,0,0,0,0,0,0,0,0,0,0,33,33,243,243,243,243,243,243,633,403,1626,1120,5290,4391,5987,5987,5583,5580,2683,2137,5987,5608,1424,1075]} 1. e4 {[%emt 0:00:02]} c6 {[%emt 0:00:04]} 2. Nf3 {[%emt 0:00:07]} d5 {[%emt 0:00:03]} 3. d3 {[%emt 0:00:05]} dxe4 {[%emt 0:00:09]} 4. dxe4 {[%emt 0:00:04]} Qxd1+ {[%emt 0:00:05]} 5. Kxd1 {[%emt 0:00:04]} Nf6 {[%emt 0:00:08]} 6. Nfd2 {[%emt 0:00:08] B10: Caro-Kann: 2 d3 and 2 c4.} e5 {[%emt 0:09:06]} 7. f3 $1 {[%emt 0:00:08] Prevents Ng4.} Be6 {[%emt 0:00:45]} 8. Bc4 {[%emt 0:00:08] [#] White is slightly better.} Kd7 $146 {[%emt 0:05:45]} ({Predecessor:} 8... Bxc4 9. Nxc4 Nfd7 10. Be3 Na6 11. Nbd2 Bc5 12. Ke2 Ke7 13. a4 b6 14. Rhd1 h5 {1-0 (31) Gavrilescu,D (2476)-Baldauf,M (2503) Chess.com INT 2020}) 9. a4 {[%emt 0:01:57]} a5 {[%emt 0:07:13]} 10. c3 {[%emt 0:00:11]} (10. Ke2 $16) 10... Bd6 $14 {[%emt 0:05:04]} 11. Kc2 {[%emt 0:08:39]} Rd8 {[%emt 0:00:08]} 12. Rd1 {[%emt 0:01:16]} h6 {[%emt 0:04:33]} 13. Na3 {[%emt 0:03:57]} (13. Bxe6+ {is interesting.} Kxe6 14. Nb3 Nbd7 15. Be3) 13... Ke7 {[%emt 0:02:54]} 14. Bxe6 {[%emt 0:01:54]} Kxe6 {[%emt 0:00:01]} 15. Nb3 {[%emt 0:00:17]} Nbd7 {[%emt 0:12:26][%cal Bb8d7,Bd7c5,Bc5b3][%mdl 32] Against Nc5+} 16. Nc4 {[%emt 0:00:06][%csl LRa5,LRd6] Against Nb6} Bc7 {[%emt 0:00:04]} 17. Be3 {[%emt 0:00:06]} b5 {[%emt 0:05:38]} (17... Rdb8 $14) 18. axb5 $16 {[%emt 0:07:10] White is much more active.} a4 {[%emt 0:00:18] Prevents b6.} 19. Nc5+ {[%emt 0:02:01]} Nxc5 {[%emt 0:00:10]} 20. b6 $36 {[%emt 0:00:23][%mdl 2048] White has strong initiative. The board is on fire.} Bd6 {[%emt 0:10:33]} 21. Rxd6+ {[%emt 0:11:38]} Rxd6 {[%emt 0:00:05]} 22. Nxd6 {[%emt 0:00:10]} (22. Bxc5 Rd7 $14) 22... Kxd6 {[%emt 0:00:03]} 23. Rd1+ {[%emt 0:00:14]} Nd5 {[%emt 0:00:02][%cal Of7f5]} 24. c4 {[%emt 0:02:16][%mdl 64] Inhibits f5. Pin} (24. exd5 $6 cxd5 25. Bxc5+ Kxc5 $11) 24... Nb3 {[%emt 0:00:02]} 25. exd5 $18 {[%emt 0:00:50][%cal Oc4c5][%mdl 4096] Endgame KRB-KRN} c5 {[%emt 0:03:51]} 26. f4 $1 {[%emt 0:00:26]} Nd4+ $2 {[%emt 0:00:57]} (26... f6) 27. Kd3 {[%emt 0:04:51]} f6 {[%emt 0:00:23]} 28. Bxd4 {[%emt 0:00:47]} exd4 {[%emt 0:00:11] KR-KR} 29. Re1 {[%emt 0:04:32] Re6+ is the strong threat.} a3 {[%emt 0:02:16]} 30. b7 {[%emt 0:06:17] Inhibits h5.} (30. Re6+ Kd7 31. b7 Rb8 $18) 30... Rb8 {[%emt 0:00:07]} 31. bxa3 {[%emt 0:03:54]} Rxb7 {[%emt 0:00:06]} 32. Kc2 {[%emt 0:00:09] Prevents Rb3.} Ra7 {[%emt 0:02:37]} 33. Kb3 {[%emt 0:00:06]} (33. Re6+ $18 Kd7 34. Rc6) 33... Rb7+ $16 {[%emt 0:00:30] [#]} 34. Ka2 $1 {[%emt 0:00:08]} Rb8 {[%emt 0:02:08]} 35. g4 {[%emt 0:01:04]} Kd7 {[%emt 0:01:55]} 36. h4 {[%emt 0:00:58]} ({White should try} 36. f5 $16) 36... g5 $11 {[%emt 0:00:38]} 37. hxg5 {[%emt 0:04:49]} hxg5 {[%emt 0:00:01]} 38. fxg5 {[%emt 0:01:48]} fxg5 {[%emt 0:00:06]} 39. Re5 {[%emt 0:00:33]} Rf8 {[%emt 0:04:14]} (39... d3 40. Re3 $16) 40. Rxg5 {[%emt 0:00:00] Strongly threatening Rf5.} Rf3 {[%emt 0:00:00]} 41. Rg7+ {[%emt 0:01:22]} (41. a4 $5 Rc3 $8 42. a5 $11) 41... Kd6 {[%emt 0:01:43]} 42. Rg6+ {[%emt 0:00:28]} Kd7 $1 {[%emt 0:00:47]} 43. Rc6 {[%emt 0:06:13]} Rc3 $1 {[%emt 0:00:04] Hoping for ...d3.} 44. Rxc5 {[%emt 0:00:34] Black must now prevent Kb2.} d3 {[%emt 0:00:02] ( -> ...d2)} 45. d6 {[%emt 0:00:10] Inhibits d2.} (45. Kb2 d2 46. Kxc3 d1=Q $15) 45... Kxd6 {[%emt 0:00:11]} (45... d2 $5 46. Rd5 $8 Rxc4 $11) 46. Rd5+ {[%emt 0:00:55]} Kc6 $2 {[%emt 0:00:11] [#] This move loses the game for Black.} (46... Ke6 $14) 47. Rd8 $1 $18 {[%emt 0:01:39] aiming for g5.} (47. g5 Rxc4 48. Rd8 (48. Rxd3 Rg4 $11) 48... Rg4 $11) 47... Rc2+ {[%emt 0:09:24]} 48. Kb3 {[%emt 0:00:14]} Rg2 {[%emt 0:00:05]} 49. Rg8 {[%emt 0:01:43]} ({Resist} 49. Rxd3 $6 Rxg4 50. a4 Rg7) 49... d2 $2 {[%emt 0:01:01]} (49... Rc2 50. Rc8+ (50. Rd8 Rg2 $18) 50... Kb6) 50. Kc2 {[%emt 0:00:08]} Kc5 {[%emt 0:02:22]} (50... Kd7 $142 51. c5 Rg3 52. Kxd2 Rxa3) 51. g5 {[%emt 0:01:47] And now g6 would win. White is clearly winning.} Kd4 {[%emt 0:00:07]} 52. g6 {[%emt 0:01:10]} Ke3 {[%emt 0:00:04]} 53. Rd8 {[%emt 0:06:22]} Rxg6 {[%emt 0:00:05]} 54. Rd3+ {[%emt 0:00:09]} (54. Rxd2 Ra6 55. Kc3 Rxa3+ 56. Kb4 Ra1) 54... Ke4 {[%emt 0:00:03]} 55. Rxd2 {[%emt 0:00:06]} ({Less strong is} 55. Kxd2 Ra6 $16) 55... Ra6 {[%emt 0:00:41]} 56. Kb3 {[%emt 0:00:14]} Rb6+ {[%emt 0:00:04]} 57. Kc3 {[%emt 0:00:13] Weighted Error Value: White=0.17 (very precise) /Black=0.37} 1-0

[Event "Croatian Championship 2022"]
[Site "Split"]
[Date "2022.11.29"]
[Round "1.3"]
[White "Kozul, Zdenko"]
[Black "Saric, Ivan"]
[Result "1-0"]
[ECO "E11"]
[WhiteElo "2539"]
[BlackElo "2674"]
[Annotator "TA"]
[PlyCount "115"]
[EventDate "2022.11.29"]
[EventType "tourn"]
[EventCountry "CRO"]
[SourceTitle "playchess.com"]
[Source "ChessBase"]
[SourceQuality "1"]
[TimeControl "40/5400+30:1800+30"]

{[%evp 10,115,22,0,0,0,0,0,0,0,0,0,0,11,0,8,17,0,0,-8,-8,-4,-7,-3,-4,-16,-6,-4,55,6,18,16,7,15,15,8,14,12,67,62,61,62,72,12,15,0,0,0,0,0,0,0,44,37,42,41,66,22,73,72,80,76,103,95,102,101,94,100,938,732,933,822,803,935,933,901,898,881,847,79,93,85,78,81,91,69,172,154,357,346,364,356,826,847,1166,1118,1109,1124,4664,3414,29978,29979,29979,29980,29979,29978,29987,448]} 1. d4 {[%emt 0:00:13]} Nf6 {[%emt 0:00:11]} 2. c4 {[%emt 0:00:21]} e6 {[%emt 0:00:05]} 3. Nf3 {[%emt 0:02:22]} d5 {[%emt 0:00:47]} 4. g3 {[%emt 0:01:25]} Bb4+ {[%emt 0:00:16]} 5. Bd2 {[%emt 0:00:15]} a5 {[%emt 0:00:04]} 6. a3 {[%emt 0:06:34]} Be7 {[%emt 0:01:30] E11: Bogo-Indian.} 7. Qc2 {[%emt 0:00:08]} O-O {[%emt 0:01:16]} 8. Bg2 {[%emt 0:00:21]} c6 {[%emt 0:01:03] The position is equal.} 9. O-O {[%emt 0:00:29]} b6 {[%emt 0:07:15]} 10. cxd5 {[%emt 0:12:53]} cxd5 {[%emt 0:00:49]} 11. Nc3 {[%emt 0:00:06]} Ba6 {[%emt 0:01:31]} 12. Rfc1 {[%emt 0:05:15]} Nbd7 {[%emt 0:03:22]} 13. Bf1 {[%emt 0:08:33] [#]} h6 $146 {[%emt 0:10:56]} ({Predecessor:} 13... b5 14. Na2 Ne4 15. e3 Nxd2 16. Qxd2 Qb6 17. Ne1 b4 18. axb4 Bxf1 19. Kxf1 axb4 {0-1 (29) Kozul,Z (2597)-Martinovic,S (2548) Tornelo INT 2021}) 14. e3 {[%emt 0:05:21]} Bxf1 {[%emt 0:01:42]} 15. Kxf1 {[%emt 0:00:07]} Qb8 {[%emt 0:03:19]} 16. Qd3 {[%emt 0:15:32]} Rc8 {[%emt 0:06:08]} 17. Rc2 {[%emt 0:03:28]} Qb7 {[%emt 0:10:06]} (17... b5 $5) 18. Rac1 {[%emt 0:01:28]} a4 {[%emt 0:08:26]} (18... Rc4 $11) 19. Na2 {[%emt 0:06:27]} (19. Kg2 $14 {feels stronger.}) 19... Rc4 {[%emt 0:05:09]} 20. Bb4 {[%emt 0:00:16]} Bxb4 {[%emt 0:00:46]} 21. Nxb4 {[%emt 0:00:09]} b5 {[%emt 0:09:57]} 22. Nd2 {[%emt 0:00:23]} e5 {[%emt 0:04:09]} 23. Kg1 {[%emt 0:04:14]} Rxc2 {[%emt 0:04:36]} (23... Ne4 $1 $11) 24. Qxc2 $14 {[%emt 0:02:42]} exd4 {[%emt 0:00:11]} 25. exd4 {[%emt 0:00:07]} Re8 {[%emt 0:00:16]} 26. Qd3 {[%emt 0:04:43]} (26. Kf1 $1 $16) 26... Ne4 $11 {[%emt 0:02:39]} 27. Nxe4 {[%emt 0:01:38]} dxe4 {[%emt 0:00:45]} 28. Qe2 {[%emt 0:00:27]} Nf6 {[%emt 0:01:06]} 29. Rc5 {[%emt 0:05:30]} Qd7 {[%emt 0:00:13]} 30. Nc2 {[%emt 0:00:15]} Rb8 {[%emt 0:01:24]} 31. Kg2 {[%emt 0:14:18]} Qb7 {[%emt 0:03:15]} 32. Ne3 {[%emt 0:00:00]} Qd7 {[%emt 0:04:20]} 33. d5 {[%emt 0:00:00]} b4 {[%emt 0:00:49]} (33... Ne8 $1 $11 {keeps the balance.}) 34. Qc4 $16 {[%emt 0:00:00]} bxa3 {[%emt 0:00:12]} 35. bxa3 {[%emt 0:00:00]} Re8 {[%emt 0:06:00]} 36. Ra5 {[%emt 0:00:00]} Ng4 {[%emt 0:00:32]} 37. Qxa4 {[%emt 0:00:00]} (37. Rxa4 $6 Nxe3+ 38. fxe3 Qf5 $11) 37... Nxe3+ {[%emt 0:00:05]} 38. fxe3 {[%emt 0:00:00]} Qf5 {[%emt 0:03:48][%mdl 8192]} 39. Qxe8+ $18 {[%emt 0:00:16][%mdl 4096] Endgame} Kh7 {[%emt 0:00:02]} 40. Kg1 {[%emt 0:00:00] Threatens to win with Ra7.} Qf3 {[%emt 0:00:00]} 41. Qb5 $1 {[%emt 0:08:01] aiming for Qf1.} (41. Ra8 Qd1+ 42. Kg2 Qf3+ 43. Kg1 Qxe3+ 44. Kf1 (44. Kg2 Qf3+ 45. Kg1 Qe3+ 46. Kh1 Qf3+ 47. Kg1 Qe3+ $11) 44... Qd3+ 45. Kg2 (45. Kg1 Qe3+ 46. Kf1 Qd3+ 47. Kg2 Qe2+ 48. Kg1 Qe3+ $11) 45... Qe2+ 46. Kg1 Qe3+ 47. Kh1 (47. Kg2 Qf3+ 48. Kg1 Qe3+ $11) 47... Qf3+ 48. Kg1 e3 49. Qh8+ Kg6 50. Ra6+ Kh5 $11) 41... Qxe3+ {[%emt 0:00:19]} 42. Kf1 {[%emt 0:00:08]} Qf3+ {[%emt 0:05:12] [#]} 43. Ke1 $1 {[%emt 0:00:08] d6 is the strong threat.} Qc3+ {[%emt 0:00:14]} 44. Kd1 $2 {[%emt 0:04:33]} (44. Ke2 $18 {is the precise move to win.}) 44... e3 $16 {[%emt 0:00:35][%csl Ge3][%cal Rc3d2] [#]} 45. Qe2 {[%emt 0:01:06] Hoping for Qc2+.} Qxa5 {[%emt 0:01:27] KQ-KQ} 46. Qd3+ {[%emt 0:00:06]} (46. Qxe3 $6 Qxd5+ 47. Ke2 Qh5+ 48. Kf1 Qxh2 $11) 46... Kg8 {[%emt 0:02:20]} 47. Ke2 {[%emt 0:03:41]} ({Much worse is} 47. Qxe3 $6 Qxd5+ 48. Ke2 Qh5+ 49. Kf1 Qf5+ 50. Kg2 Qc2+ 51. Kf3 Qc6+ 52. Kf2 Qf6+ 53. Kg2 Qb2+ 54. Kh3 Qb5 $11) 47... Kf8 {[%emt 0:01:15]} ({Black should play} 47... Qb6 $14) 48. Kxe3 {[%emt 0:03:28]} Qe1+ $2 {[%emt 0:00:40] [#]} (48... Qc5+ $16 {was called for.} 49. Kf3 g6) 49. Kd4 $1 $18 {[%emt 0:00:08]} Qf2+ {[%emt 0:01:52]} 50. Kc4 {[%emt 0:00:20]} Ke7 $2 {[%emt 0:00:34]} (50... Qa7 51. Qb3 Qa6+ 52. Kc5 Qc8+ 53. Kd4 Qg4+ 54. Kc3 Qc8+ 55. Qc4 Qe8) 51. a4 {[%emt 0:01:32][%cal Ba3a4,Ba4a5,Ba5a6,Ba6a7][%mdl 32]} f5 {[%emt 0:06:43]} 52. a5 {[%emt 0:00:53]} Qa2+ {[%emt 0:00:20]} 53. Kb5 {[%emt 0:00:23]} Kd6 {[%emt 0:00:45]} 54. Qc4 {[%emt 0:01:47]} ({Inferior is} 54. Qxf5 Qb3+ 55. Ka6 Qc4+ 56. Kb6 Qc5+ 57. Kb7 (57. Ka6 Qc4+ 58. Kb7 Qc7+ 59. Ka6 Qc4+ $11) 57... Qc7+ 58. Ka6 Qc4+ 59. Kb6 Qc5+ 60. Kb7 (60. Ka6 Qc4+ $11) 60... Qc7+ 61. Ka6 Qc4+ $11) 54... Qxh2 {[%emt 0:02:25]} 55. a6 {[%emt 0:00:21] White mates.} Ke5 {[%emt 0:01:28]} 56. a7 {[%emt 0:01:54]} Qb2+ {[%emt 0:00:06]} 57. Kc6 {[%emt 0:00:08]} Qa3 {[%emt 0:00:29]} 58. Qf4+ {[%emt 0:14:37] Weighted Error Value: White=0.23 (precise) /Black=0.28 (precise)} 1-0

[Event "Croatian Championship 2022"]
[Site "Split"]
[Date "2022.11.29"]
[Round "1.4"]
[White "Doric, Darko"]
[Black "Brkic, Ante"]
[Result "1/2-1/2"]
[ECO "D38"]
[WhiteElo "2446"]
[BlackElo "2610"]
[Annotator "TA"]
[PlyCount "87"]
[EventDate "2022.11.29"]
[EventType "tourn"]
[EventCountry "CRO"]
[SourceTitle "playchess.com"]
[Source "ChessBase"]
[SourceQuality "1"]
[TimeControl "40/5400+30:1800+30"]

{[%evp 20,87,26,1,15,0,0,0,0,0,0,0,0,0,0,0,0,0,0,0,0,0,0,0,0,0,0,0,0,-7,0,0,0,0,7,0,58,70,145,79,69,73,72,79,181,0,0,0,0,0,0,0,27,0,0,0,0,0,52,0,0,0,0,0,184,0,0,0,0,0]} 1. d4 {[%emt 0:00:03]} d5 {[%emt 0:00:10]} 2. c4 {[%emt 0:01:04]} e6 {[%emt 0:00:05]} 3. Nc3 {[%emt 0:00:05]} Nf6 {[%emt 0:00:09]} 4. cxd5 {[%emt 0:01:12]} exd5 {[%emt 0:00:07]} 5. Bg5 {[%emt 0:00:38]} Bb4 {[%emt 0:00:29]} 6. e3 {[%emt 0:06:33]} h6 {[%emt 0:01:11]} 7. Bxf6 {[%emt 0:00:25]} Qxf6 {[%emt 0:00:09]} 8. Qb3 {[%emt 0:05:54]} Qd6 {[%emt 0:04:03]} 9. Nf3 {[%emt 0:01:21]} Bf5 {[%emt 0:26:54]} 10. a3 {[%emt 0:05:09]} Bxc3+ {[%emt 0:00:05]} 11. Qxc3 {[%emt 0:00:11]} (11. bxc3 $5 {[%cal Rb3b7]} Nd7 12. c4 $11) 11... Nd7 {[%emt 0:02:18] D38: Queen's Gambit Declined: Ragozin Defence (4 Nf3 Bb4).} 12. Bd3 {[%emt 0:04:21]} Bxd3 {[%emt 0:01:10]} 13. Qxd3 {[%emt 0:00:05]} O-O {[%emt 0:02:16]} 14. O-O {[%emt 0:00:05]} a5 {[%emt 0:01:58] [#]} 15. a4 $146 {[%emt 0:00:47]} ({Predecessor:} 15. Rfc1 c6 16. b4 axb4 17. axb4 Rxa1 18. Rxa1 Qxb4 19. Rb1 Qc4 20. Qxc4 dxc4 21. Rxb7 {0-1 (71) Valden,P (2223)-Atalik,E (2444) Chalkis 2010}) 15... c6 {[%emt 0:01:34]} 16. Qa3 {[%emt 0:11:38]} Qc7 {[%emt 0:13:10]} 17. Ne1 {[%emt 0:01:02]} Nf6 {[%emt 0:02:07]} 18. h3 {[%emt 0:10:56]} Ne4 {[%emt 0:01:11]} 19. Nd3 {[%emt 0:00:09]} Rfe8 {[%emt 0:08:00]} 20. Rad1 {[%emt 0:02:03]} Re7 {[%emt 0:05:17]} 21. Qb3 {[%emt 0:04:29]} Rae8 {[%emt 0:00:48]} 22. Qc2 {[%emt 0:00:32]} Qc8 {[%emt 0:06:14]} 23. Rfe1 {[%emt 0:02:17]} Qf5 {[%emt 0:02:27]} 24. Qe2 {[%emt 0:09:19]} h5 {[%emt 0:03:49]} 25. Nf4 {[%emt 0:02:40]} h4 {[%emt 0:03:32]} 26. Nd3 {[%emt 0:04:25]} Re6 {[%emt 0:04:52]} 27. Ne5 {[%emt 0:08:48]} Rxe5 {[%emt 0:02:21]} (27... f6 $11 28. Nd3 g5) 28. dxe5 $14 {[%emt 0:00:11]} Rxe5 {[%emt 0:00:01]} (28... Qxe5 $14 29. Rc1 Re6) 29. Qc2 {[%emt 0:06:01]} (29. f3 $142 $1 {[%cal Rf3e4]} Nc5 30. Qd2) 29... Qe6 {[%emt 0:00:52]} 30. f3 {[%emt 0:04:22] Against b6} Ng3 {[%emt 0:00:16]} 31. Qd2 {[%emt 0:00:20]} f5 {[%emt 0:04:15] [#]} (31... g6 $16) 32. Qxa5 $2 {[%emt 0:00:44]} ({White should play} 32. Kf2 $1 $18) 32... Rxe3 $11 {[%emt 0:00:29]} 33. Qd8+ {[%emt 0:01:59]} Kf7 {[%emt 0:00:01]} 34. Qc7+ {[%emt 0:00:28]} Kg6 {[%emt 0:00:26]} 35. Rxe3 {[%emt 0:00:56]} Qxe3+ {[%emt 0:00:02][%mdl 4096] Endgame KQR-KQN} 36. Kh2 {[%emt 0:00:06]} Qe2 {[%emt 0:01:17][%csl LRb2,LRd1]} 37. Rb1 {[%emt 0:01:45]} Nf1+ {[%emt 0:01:32]} 38. Kh1 {[%emt 0:05:06]} Ne3 {[%emt 0:00:45]} (38... Ng3+ $11 39. Kg1 (39. Kh2 Nf1+ 40. Kh1 Ng3+ 41. Kh2 $11) 39... Qc2) 39. Qd6+ {[%emt 0:00:34]} (39. Rg1 $14) 39... Kh7 {[%emt 0:01:53][%csl Ge3][%cal Re2g2]} 40. Rg1 {[%emt 0:00:00] Hoping for Qe7.} Qxb2 {[%emt 0:00:00]} 41. Qf4 {[%emt 0:02:42]} Qf2 {[%emt 0:06:04] [#]} (41... d4 $1 $11 {and Black has nothing to worry.}) 42. Qg5 $2 {[%emt 0:02:22]} ({White has to play} 42. Qd4 $1 $18) 42... d4 {[%emt 0:07:06]} 43. Qh5+ {[%emt 0:00:31]} Kg8 {[%emt 0:00:01]} 44. Qe8+ {[%emt 0:00:40] Weighted Error Value: White=0.17 (very precise) /Black=0.19 (very precise)} 1/2-1/2